[Event "Test Tournament"]
[Site "Emanuel Lasker Arena"]
[Date "2024.04.09"]
[Round "3"]
[White "Triskaidekaphobe"]
[Black "Jamie Fraser"]
[Result "0-1"]
[WhiteElo "1620"]
[BlackElo "2119"]
[Annotator "RC"]
[PlyCount "66"]
[EventDate "2024.04.09"]
[EventType "swiss (blitz)"]
[TimeControl "60"]

1. e4 {[%emt 0:00:01]} e5 {[%emt 0:00:01]} 2. Nf3 {[%emt 0:00:01]} Nc6 {[%emt 0:00:01]} 3. Bb5 {[%emt 0:00:01]} a6 {[%emt 0:00:01]} 4. Ba4 {[%emt 0:00:01]} Nf6 {[%emt 0:00:01]} 5. O-O {[%emt 0:00:01]} b5 {[%emt 0:00:01]} 6. Bb3 {[%emt 0:00:01]} Bb7 {[%emt 0:00:01]} 7. d3 {[%emt 0:00:01]} Bc5 {[%emt 0:00:04]} 8. a4 {[%emt 0:00:01]} O-O {[%emt 0:00:00]} 9. Bg5 {[%emt 0:00:01]} h6 {[%emt 0:00:01]} 10. Bh4 {[%emt 0:00:01]} Qe7 {[%emt 0:00:01]} 11. c3 {[%emt 0:00:01]} d6 {[%emt 0:00:01]} 12. Nbd2 {[%emt 0:00:02]} g5 {[%emt 0:00:02]} 13. axb5 {[%emt 0:00:04]} axb5 {[%emt 0:00:01]} 14. Bg3 {[%emt 0:00:06]} Rxa1 {[%emt 0:00:01]} 15. Qxa1 {[%emt 0:00:01]} Ra8 {[%emt 0:00:05]} 16. Qc1 {[%emt 0:00:03]} Ng4 {[%emt 0:00:03]} 17. Re1 {[%emt 0:00:07]} Qf6 {[%emt 0:00:02]} 18. h3 {[%emt 0:00:03]} h5 {[%emt 0:00:03]} 19. hxg4 {[%emt 0:00:01]} h4 {[%emt 0:00:03]} 20. Bh2 {[%emt 0:00:02]} b4 {[%emt 0:00:03]} 21. Qd1 {[%emt 0:00:03]} Kg7 {[%emt 0:00:02]} 22. Bd5 {[%emt 0:00:02]} Ra6 {[%emt 0:00:02]} 23. Nb3 {[%emt 0:00:02]} Bb6 {[%emt 0:00:02]} 24. d4 {[%emt 0:00:02]} exd4 {[%emt 0:00:02]} 25. cxd4 {[%emt 0:00:01]} Ra2 {[%emt 0:00:02]} 26. Qc2 {[%emt 0:00:02]} h3 {[%emt 0:00:01]} 27. Bxc6 {[%emt 0:00:01]} Bxc6 {[%emt 0:00:01]} 28. Qxc6 {[%emt 0:00:00]} Rxb2 {[%emt 0:00:01]} 29. Qd5 {[%emt 0:00:02]} c6 {[%emt 0:00:02]} 30. Qxc6 {[%emt 0:00:01]} Rxb3 {[%emt 0:00:01]} 31. Qxb6 {[%emt 0:00:01]} Rxf3 {[%emt 0:00:00]} 32. gxf3 {[%emt 0:00:00]} Qxf3 {[%emt 0:00:01]} 33. Bxd6 {[%emt 0:00:01]} Qg2# {[%emt 0:00:01] (Lag: Av=0.07s, max=0.7s)} 0-1

[Event "Test Tournament"]
[Site "Emanuel Lasker Arena"]
[Date "2024.04.09"]
[Round "4"]
[White "Swindler"]
[Black "Fuerteventura"]
[Result "0-1"]
[WhiteElo "2226"]
[BlackElo "1620"]
[Annotator "RC"]
[PlyCount "36"]
[EventDate "2024.04.09"]
[EventType "swiss (blitz)"]
[TimeControl "60"]

1. e4 {[%emt 0:00:01]} e5 {[%emt 0:00:01]} 2. Nf3 {[%emt 0:00:01]} Nc6 {[%emt 0:00:02]} 3. Bb5 {[%emt 0:00:01]} a6 {[%emt 0:00:01]} 4. Ba4 {[%emt 0:00:01]} Nf6 {[%emt 0:00:01]} 5. O-O {[%emt 0:00:01]} Nxe4 {[%emt 0:00:00]} 6. d4 {[%emt 0:00:01]} b5 {[%emt 0:00:01]} 7. Bb3 {[%emt 0:00:01]} d5 {[%emt 0:00:01]} 8. dxe5 {[%emt 0:00:01]} Be6 {[%emt 0:00:01]} 9. Nbd2 {[%emt 0:00:01]} Nc5 {[%emt 0:00:01]} 10. c3 {[%emt 0:00:01]} d4 {[%emt 0:00:01]} 11. cxd4 {[%emt 0:00:01]} Nxd4 {[%emt 0:00:01]} 12. Nxd4 {[%emt 0:00:01]} Qxd4 {[%emt 0:00:01]} 13. Bxe6 {[%emt 0:00:01]} Nxe6 {[%emt 0:00:01]} 14. Qf3 {[%emt 0:00:01]} Rd8 {[%emt 0:00:01]} 15. Qc6+ {[%emt 0:00:01]} Qd7 {[%emt 0:00:02]} 16. Ne4 {[%emt 0:00:05]} Qxc6 {[%emt 0:00:01]} 17. Re1 {[%emt 0:00:03]} Qxe4 {[%emt 0:00:02]} 18. Rxe4 {[%emt 0:00:03]} Rd1+ {[%emt 0:00:03] Swindler resigns (Lag: Av=0.12s, max=1.1s)} 0-1

[Event "Test Tournament"]
[Site "Emanuel Lasker Arena"]
[Date "2024.04.09"]
[Round "4"]
[White "Chartwell"]
[Black "Roberta Draper"]
[Result "0-1"]
[WhiteElo "2149"]
[BlackElo "1620"]
[Annotator "RC"]
[PlyCount "80"]
[EventDate "2024.04.09"]
[EventType "swiss (blitz)"]
[TimeControl "60"]

1. c4 {[%emt 0:00:01]} c5 {[%emt 0:00:01]} 2. g3 {[%emt 0:00:01]} Nf6 {[%emt 0:00:01]} 3. Bg2 {[%emt 0:00:01]} Nc6 {[%emt 0:00:07]} 4. Nc3 {[%emt 0:00:01]} g6 {[%emt 0:00:01]} 5. a3 {[%emt 0:00:01]} Bg7 {[%emt 0:00:01]} 6. Rb1 {[%emt 0:00:01]} a5 {[%emt 0:00:01]} 7. e4 {[%emt 0:00:01]} d6 {[%emt 0:00:01]} 8. Nf3 {[%emt 0:00:01]} Bg4 {[%emt 0:00:01]} 9. d3 {[%emt 0:00:04]} Nd7 {[%emt 0:00:02]} 10. h3 {[%emt 0:00:03]} Bxf3 {[%emt 0:00:04]} 11. Bxf3 {[%emt 0:00:01]} Nd4 {[%emt 0:00:03]} 12. Nd5 {[%emt 0:00:08]} Ne5 {[%emt 0:00:07]} 13. Bg4 {[%emt 0:00:03]} h5 {[%emt 0:00:03]} 14. Be2 {[%emt 0:00:03]} Bh6 {[%emt 0:00:02]} 15. Qa4+ {[%emt 0:00:03]} Kf8 {[%emt 0:00:02]} 16. f4 {[%emt 0:00:02]} e6 {[%emt 0:00:02]} 17. fxe5 {[%emt 0:00:02]} b5 {[%emt 0:00:01]} 18. cxb5 {[%emt 0:00:01]} Bxc1 {[%emt 0:00:01]} 19. Rxc1 {[%emt 0:00:01]} exd5 {[%emt 0:00:01]} 20. exd5 {[%emt 0:00:02]} Qg5 {[%emt 0:00:02]} 21. Rc4 {[%emt 0:00:02]} Qe3 {[%emt 0:00:01]} 22. Rxd4 {[%emt 0:00:01]} cxd4 {[%emt 0:00:01]} 23. e6 {[%emt 0:00:02]} fxe6 {[%emt 0:00:01]} 24. dxe6 {[%emt 0:00:01]} Rc8 {[%emt 0:00:01]} 25. Rf1+ {[%emt 0:00:02]} Ke7 {[%emt 0:00:01]} 26. Rf7+ {[%emt 0:00:01]} Kxe6 {[%emt 0:00:01]} 27. Qb3+ {[%emt 0:00:01]} d5 {[%emt 0:00:01]} 28. Kf1 {[%emt 0:00:02]} Kxf7 {[%emt 0:00:01]} 29. Qxd5+ {[%emt 0:00:01]} Kg7 {[%emt 0:00:01]} 30. Qb7+ {[%emt 0:00:01]} Kh6 {[%emt 0:00:01]} 31. Bd1 {[%emt 0:00:01]} Rc1 {[%emt 0:00:01]} 32. Kg2 {[%emt 0:00:01]} Rxd1 {[%emt 0:00:01]} 33. Qg7+ {[%emt 0:00:01]} Kxg7 {[%emt 0:00:01]} 34. b6 {[%emt 0:00:01]} Rf8 {[%emt 0:00:01]} 35. b7 {[%emt 0:00:01]} Rd2+ {[%emt 0:00:01]} 36. Kh1 {[%emt 0:00:01]} Rff2 {[%emt 0:00:02]} 37. h4 {[%emt 0:00:01]} Rg2 {[%emt 0:00:01]} 38. b8=R {[%emt 0:00:01]} Rxb2 {[%emt 0:00:01]} 39. Rd8 {[%emt 0:00:00]} Qxg3 {[%emt 0:00:00]} 40. Rxd4 {[%emt 0:00:00]} Rh2# {[%emt 0:00:01] (Lag: Av=0.10s, max=0.9s)} 0-1

[Event "Test Tournament"]
[Site "Emanuel Lasker Arena"]
[Date "2024.04.09"]
[Round "4"]
[White "Jamie Fraser"]
[Black "Daenerys"]
[Result "1-0"]
[WhiteElo "2119"]
[BlackElo "1922"]
[Annotator "RC"]
[PlyCount "53"]
[EventDate "2024.04.09"]
[EventType "swiss (blitz)"]
[TimeControl "60"]

1. e4 {[%emt 0:00:01]} e5 {[%emt 0:00:01]} 2. Nf3 {[%emt 0:00:01]} Nc6 {[%emt 0:00:01]} 3. Bb5 {[%emt 0:00:01]} f5 {[%emt 0:00:01]} 4. Nc3 {[%emt 0:00:01]} fxe4 {[%emt 0:00:01]} 5. Nxe4 {[%emt 0:00:01]} Nf6 {[%emt 0:00:01]} 6. Nxf6+ {[%emt 0:00:01]} Qxf6 {[%emt 0:00:02]} 7. O-O {[%emt 0:00:01]} Be7 {[%emt 0:00:01]} 8. Qe2 {[%emt 0:00:01]} d6 {[%emt 0:00:01]} 9. d4 {[%emt 0:00:01]} exd4 {[%emt 0:00:02]} 10. Bg5 {[%emt 0:00:02]} Qe6 {[%emt 0:00:02]} 11. Qxe6 {[%emt 0:00:01]} Bxe6 {[%emt 0:00:01]} 12. Rfe1 {[%emt 0:00:08]} h6 {[%emt 0:00:04]} 13. Nxd4 {[%emt 0:00:04]} hxg5 {[%emt 0:00:02]} 14. Nxe6 {[%emt 0:00:01]} Kf7 {[%emt 0:00:04]} 15. Nxc7 {[%emt 0:00:01]} Rac8 {[%emt 0:00:03]} 16. Nd5 {[%emt 0:00:04]} Ne5 {[%emt 0:00:03]} 17. c4 {[%emt 0:00:03]} g4 {[%emt 0:00:03]} 18. Re4 {[%emt 0:00:03]} Rc5 {[%emt 0:00:02]} 19. b4 {[%emt 0:00:02]} g3 {[%emt 0:00:18]} 20. Rf4+ {[%emt 0:00:02]} Bf6 {[%emt 0:00:01]} 21. bxc5 {[%emt 0:00:01]} Rxh2 {[%emt 0:00:01]} 22. cxd6 {[%emt 0:00:02]} Ng6 {[%emt 0:00:01]} 23. Rf5 {[%emt 0:00:02]} Nh4 {[%emt 0:00:01]} 24. Rf4 {[%emt 0:00:02]} Rxg2+ {[%emt 0:00:00]} 25. Kf1 {[%emt 0:00:01]} Rh2 {[%emt 0:00:01]} 26. Nxf6 {[%emt 0:00:01]} Rh1+ {[%emt 0:00:01] '} 27. Ke2 {[%emt 0:00:01] (Lag: Av=0.09s, max=1.0s)} 1-0

[Event "Test Tournament"]
[Site "Emanuel Lasker Arena"]
[Date "2024.04.09"]
[Round "4"]
[White "Irina"]
[Black "Sauerbruch"]
[Result "1-0"]
[WhiteElo "2113"]
[BlackElo "1620"]
[Annotator "RC"]
[PlyCount "89"]
[EventDate "2024.04.09"]
[EventType "swiss (blitz)"]
[TimeControl "60"]

1. d4 {[%emt 0:00:01]} f5 {[%emt 0:00:01]} 2. c4 {[%emt 0:00:01]} Nf6 {[%emt 0:00:01]} 3. g3 {[%emt 0:00:01]} e6 {[%emt 0:00:01]} 4. Bg2 {[%emt 0:00:02]} Bb4+ {[%emt 0:00:01]} 5. Nc3 {[%emt 0:00:01]} O-O {[%emt 0:00:01]} 6. Bd2 {[%emt 0:00:01]} Qe7 {[%emt 0:00:01]} 7. Nh3 {[%emt 0:00:01]} d5 {[%emt 0:00:01]} 8. cxd5 {[%emt 0:00:01]} Bxc3 {[%emt 0:00:01]} 9. Bxc3 {[%emt 0:00:02]} Nxd5 {[%emt 0:00:01]} 10. e4 {[%emt 0:00:04]} e5 {[%emt 0:00:04]} 11. Qb3 {[%emt 0:00:04]} c6 {[%emt 0:00:07]} 12. exd5 {[%emt 0:00:01]} exd4+ {[%emt 0:00:01]} 13. Kf1 {[%emt 0:00:01]} dxc3 {[%emt 0:00:01]} 14. dxc6+ {[%emt 0:00:01]} Qe6 {[%emt 0:00:03]} 15. cxb7 {[%emt 0:00:01]} Qxb3 {[%emt 0:00:01]} 16. bxa8=Q {[%emt 0:00:01]} cxb2 {[%emt 0:00:01]} 17. Bd5+ {[%emt 0:00:03]} Be6 {[%emt 0:00:03]} 18. Bxe6+ {[%emt 0:00:01]} Qxe6 {[%emt 0:00:01]} 19. Kg2 {[%emt 0:00:03]} Nc6 {[%emt 0:00:03]} 20. Qb7 {[%emt 0:00:04]} Qe4+ {[%emt 0:00:03]} 21. f3 {[%emt 0:00:01]} bxa1=Q {[%emt 0:00:01]} 22. Rxa1 {[%emt 0:00:01]} Qd4 {[%emt 0:00:02]} 23. Rf1 {[%emt 0:00:02]} Ne5 {[%emt 0:00:02]} 24. Rf2 {[%emt 0:00:02]} h5 {[%emt 0:00:02]} 25. Qb2 {[%emt 0:00:02]} Qe3 {[%emt 0:00:01]} 26. Qd2 {[%emt 0:00:02]} f4 {[%emt 0:00:01]} 27. Nxf4 {[%emt 0:00:01]} Qc5 {[%emt 0:00:01]} 28. Qd5+ {[%emt 0:00:01]} Qxd5 {[%emt 0:00:01]} 29. Nxd5 {[%emt 0:00:01]} h4 {[%emt 0:00:01]} 30. Ne7+ {[%emt 0:00:01]} Kf7 {[%emt 0:00:01]} 31. Nf5 {[%emt 0:00:01]} Nd3 {[%emt 0:00:01]} 32. Rf1 {[%emt 0:00:01]} g5 {[%emt 0:00:01]} 33. f4 {[%emt 0:00:01]} Kf6 {[%emt 0:00:01]} 34. fxg5+ {[%emt 0:00:01]} Kxg5 {[%emt 0:00:01]} 35. gxh4+ {[%emt 0:00:01]} Kf6 {[%emt 0:00:01]} 36. h5 {[%emt 0:00:01]} Kg5 {[%emt 0:00:01]} 37. h4+ {[%emt 0:00:01]} Kf6 {[%emt 0:00:01]} 38. Nd4+ {[%emt 0:00:01]} Ke7 {[%emt 0:00:01]} 39. h6 {[%emt 0:00:01]} Rf6 {[%emt 0:00:01]} 40. h7 {[%emt 0:00:01]} Rf4 {[%emt 0:00:01]} 41. h8=Q {[%emt 0:00:01]} Kd7 {[%emt 0:00:01]} 42. Qg7+ {[%emt 0:00:01]} Kd6 {[%emt 0:00:01]} 43. Nb5+ {[%emt 0:00:01]} Kc6 {[%emt 0:00:01]} 44. Nxa7+ {[%emt 0:00:00]} Kb6 {[%emt 0:00:01] '} 45. Qh6+ {[%emt 0:00:01] (Lag: Av=0.10s, max=1.1s)} 1-0

[Event "Test Tournament"]
[Site "Emanuel Lasker Arena"]
[Date "2024.04.09"]
[Round "4"]
[White "Kalinda"]
[Black "Churchill"]
[Result "1-0"]
[WhiteElo "2102"]
[BlackElo "1620"]
[Annotator "RC"]
[PlyCount "61"]
[EventDate "2024.04.09"]
[EventType "swiss (blitz)"]
[TimeControl "60"]

1. d4 {[%emt 0:00:01]} Nf6 {[%emt 0:00:02]} 2. c4 {[%emt 0:00:02]} e6 {[%emt 0:00:01]} 3. Nc3 {[%emt 0:00:01]} Bb4 {[%emt 0:00:01]} 4. e3 {[%emt 0:00:01]} O-O {[%emt 0:00:02]} 5. Bd3 {[%emt 0:00:01]} d5 {[%emt 0:00:02]} 6. cxd5 {[%emt 0:00:01]} exd5 {[%emt 0:00:02]} 7. a3 {[%emt 0:00:01]} c5 {[%emt 0:00:10]} 8. axb4 {[%emt 0:00:01]} cxb4 {[%emt 0:00:00]} 9. Nb5 {[%emt 0:00:04]} Ne4 {[%emt 0:00:01]} 10. Qh5 {[%emt 0:00:04]} Qf6 {[%emt 0:00:03]} 11. Nh3 {[%emt 0:00:03]} g6 {[%emt 0:00:03]} 12. Qxd5 {[%emt 0:00:01]} Bxh3 {[%emt 0:00:02]} 13. Bxe4 {[%emt 0:00:01]} Rd8 {[%emt 0:00:03]} 14. Qxb7 {[%emt 0:00:01]} Bg4 {[%emt 0:00:03]} 15. Qxa8 {[%emt 0:00:01]} h5 {[%emt 0:00:03]} 16. Rxa7 {[%emt 0:00:01]} Bc8 {[%emt 0:00:03]} 17. Qxb8 {[%emt 0:00:00]} Bf5 {[%emt 0:00:02]} 18. Rxf7 {[%emt 0:00:03]} Kxf7 {[%emt 0:00:01]} 19. Qc7+ {[%emt 0:00:03]} Kf8 {[%emt 0:00:01]} 20. Bxf5 {[%emt 0:00:02]} gxf5 {[%emt 0:00:01]} 21. Bd2 {[%emt 0:00:02]} Kg8 {[%emt 0:00:02]} 22. Bxb4 {[%emt 0:00:01]} h4 {[%emt 0:00:03]} 23. Bf8 {[%emt 0:00:02]} Kxf8 {[%emt 0:00:01]} 24. O-O {[%emt 0:00:01]} f4 {[%emt 0:00:01]} 25. b4 {[%emt 0:00:03]} f3 {[%emt 0:00:01]} 26. g4 {[%emt 0:00:01]} hxg3 {[%emt 0:00:01]} 27. hxg3 {[%emt 0:00:01]} Ke8 {[%emt 0:00:01]} 28. Nc3 {[%emt 0:00:02]} Kf8 {[%emt 0:00:01]} 29. Re1 {[%emt 0:00:01]} Qg5 {[%emt 0:00:01]} 30. Ne4 {[%emt 0:00:01]} Qd5 {[%emt 0:00:01]} 31. b5 {[%emt 0:00:04] Time (Lag: Av=0.09s, max=1.0s)} 1-0

[Event "Test Tournament"]
[Site "Emanuel Lasker Arena"]
[Date "2024.04.09"]
[Round "4"]
[White "MikhailBerg"]
[Black "Antonella"]
[Result "0-1"]
[WhiteElo "2094"]
[BlackElo "2040"]
[Annotator "RC"]
[PlyCount "76"]
[EventDate "2024.04.09"]
[EventType "swiss (blitz)"]
[TimeControl "60"]

1. e4 {[%emt 0:00:01]} c5 {[%emt 0:00:01]} 2. Nf3 {[%emt 0:00:01]} Nc6 {[%emt 0:00:01]} 3. d4 {[%emt 0:00:01]} cxd4 {[%emt 0:00:01]} 4. Nxd4 {[%emt 0:00:01]} Nf6 {[%emt 0:00:01]} 5. Nc3 {[%emt 0:00:01]} e5 {[%emt 0:00:01]} 6. Ndb5 {[%emt 0:00:01]} d6 {[%emt 0:00:01]} 7. Bg5 {[%emt 0:00:01]} a6 {[%emt 0:00:01]} 8. Na3 {[%emt 0:00:01]} b5 {[%emt 0:00:01]} 9. Bxf6 {[%emt 0:00:01]} gxf6 {[%emt 0:00:01]} 10. Nd5 {[%emt 0:00:01]} f5 {[%emt 0:00:01]} 11. c3 {[%emt 0:00:01]} Bg7 {[%emt 0:00:01]} 12. Bd3 {[%emt 0:00:01]} Be6 {[%emt 0:00:00]} 13. Nxb5 {[%emt 0:00:01]} axb5 {[%emt 0:00:01]} 14. Bxb5 {[%emt 0:00:01]} Rc8 {[%emt 0:00:01]} 15. Qa4 {[%emt 0:00:01]} Bd7 {[%emt 0:00:01]} 16. exf5 {[%emt 0:00:01]} Qg5 {[%emt 0:00:04]} 17. g4 {[%emt 0:00:01]} h5 {[%emt 0:00:01]} 18. h4 {[%emt 0:00:04]} Qxg4 {[%emt 0:00:01]} 19. Qxg4 {[%emt 0:00:01]} hxg4 {[%emt 0:00:01]} 20. f6 {[%emt 0:00:04]} Bf8 {[%emt 0:00:04]} 21. a4 {[%emt 0:00:08]} Rh6 {[%emt 0:00:03]} 22. b4 {[%emt 0:00:02]} Be6 {[%emt 0:00:03]} 23. Nb6 {[%emt 0:00:02]} Rc7 {[%emt 0:00:01]} 24. a5 {[%emt 0:00:02]} Rxf6 {[%emt 0:00:01]} 25. a6 {[%emt 0:00:01]} Kd8 {[%emt 0:00:03]} 26. h5 {[%emt 0:00:02]} d5 {[%emt 0:00:02]} 27. Rd1 {[%emt 0:00:02]} d4 {[%emt 0:00:02]} 28. Rh4 {[%emt 0:00:02]} Bh6 {[%emt 0:00:02]} 29. Ke2 {[%emt 0:00:01]} e4 {[%emt 0:00:02]} 30. cxd4 {[%emt 0:00:01]} Nxb4 {[%emt 0:00:01]} 31. d5 {[%emt 0:00:01]} Bc8 {[%emt 0:00:01]} 32. d6 {[%emt 0:00:01]} Rc2+ {[%emt 0:00:01]} 33. Ke1 {[%emt 0:00:01]} Rfxf2 {[%emt 0:00:01]} 34. a7 {[%emt 0:00:01]} Nd3+ {[%emt 0:00:01]} 35. Bxd3 {[%emt 0:00:01]} exd3 {[%emt 0:00:01]} 36. Rxd3 {[%emt 0:00:01]} Rce2+ {[%emt 0:00:01]} 37. Kd1 {[%emt 0:00:01]} Ra2 {[%emt 0:00:02]} 38. a8=Q {[%emt 0:00:01]} Rf1# {[%emt 0:00:02] (Lag: Av=0.10s, max=1.1s)} 0-1

[Event "Test Tournament"]
[Site "Emanuel Lasker Arena"]
[Date "2024.04.09"]
[Round "4"]
[White "Toby Ziegler"]
[Black "Endspielexperte"]
[Result "1-0"]
[WhiteElo "2064"]
[BlackElo "1620"]
[Annotator "RC"]
[PlyCount "67"]
[EventDate "2024.04.09"]
[EventType "swiss (blitz)"]
[TimeControl "60"]

1. d4 {[%emt 0:00:01]} d5 {[%emt 0:00:01]} 2. c4 {[%emt 0:00:01]} dxc4 {[%emt 0:00:01]} 3. Nf3 {[%emt 0:00:01]} Nf6 {[%emt 0:00:01]} 4. e3 {[%emt 0:00:01]} e6 {[%emt 0:00:01]} 5. Bxc4 {[%emt 0:00:01]} c5 {[%emt 0:00:01]} 6. O-O {[%emt 0:00:01]} a6 {[%emt 0:00:01]} 7. a4 {[%emt 0:00:01]} Nc6 {[%emt 0:00:01]} 8. Qe2 {[%emt 0:00:01]} Qc7 {[%emt 0:00:01]} 9. Rd1 {[%emt 0:00:01]} Bd6 {[%emt 0:00:01]} 10. Nc3 {[%emt 0:00:01]} O-O {[%emt 0:00:01]} 11. h3 {[%emt 0:00:01]} b6 {[%emt 0:00:01]} 12. dxc5 {[%emt 0:00:01]} Bxc5 {[%emt 0:00:01]} 13. e4 {[%emt 0:00:01]} Nd7 {[%emt 0:00:01]} 14. Be3 {[%emt 0:00:01]} Bb7 {[%emt 0:00:01]} 15. Rd2 {[%emt 0:00:04]} Nce5 {[%emt 0:00:01]} 16. Bf4 {[%emt 0:00:03]} Nxf3+ {[%emt 0:00:01]} 17. Qxf3 {[%emt 0:00:01]} Ne5 {[%emt 0:00:04]} 18. Qh5 {[%emt 0:00:04]} Bd6 {[%emt 0:00:04]} 19. Rxd6 {[%emt 0:00:03]} Nxc4 {[%emt 0:00:01]} 20. e5 {[%emt 0:00:03]} Rad8 {[%emt 0:00:01]} 21. Rad1 {[%emt 0:00:02]} Nxb2 {[%emt 0:00:01]} 22. Rc1 {[%emt 0:00:01]} Rd7 {[%emt 0:00:04]} 23. Nd1 {[%emt 0:00:02]} Rxd6 {[%emt 0:00:01]} 24. Rxc7 {[%emt 0:00:01]} Rxd1+ {[%emt 0:00:01]} 25. Kh2 {[%emt 0:00:01]} Be4 {[%emt 0:00:03]} 26. a5 {[%emt 0:00:02]} b5 {[%emt 0:00:03]} 27. Qe2 {[%emt 0:00:02]} Bd3 {[%emt 0:00:02]} 28. Qxb2 {[%emt 0:00:01]} Rd8 {[%emt 0:00:02]} 29. Qd4 {[%emt 0:00:02]} Bf1 {[%emt 0:00:01]} 30. Qxd1 {[%emt 0:00:01]} Bd3 {[%emt 0:00:02]} 31. Qxd3 {[%emt 0:00:01]} Rf8 {[%emt 0:00:01]} 32. Bh6 {[%emt 0:00:01]} f5 {[%emt 0:00:01]} 33. Qd7 {[%emt 0:00:01]} gxh6 {[%emt 0:00:01]} 34. Qxh7# {[%emt 0:00:01] (Lag: Av=0.07s, max=0.6s)} 1-0

[Event "Test Tournament"]
[Site "Emanuel Lasker Arena"]
[Date "2024.04.09"]
[Round "4"]
[White "Toby Ziegler"]
[Black "Stachelrochade"]
[Result "1-0"]
[WhiteElo "2064"]
[BlackElo "1620"]
[Annotator "RC"]
[PlyCount "81"]
[EventDate "2024.04.09"]
[EventType "swiss (blitz)"]
[TimeControl "60"]

1. c4 {[%emt 0:00:01]} c5 {[%emt 0:00:01]} 2. g3 {[%emt 0:00:01]} g6 {[%emt 0:00:01]} 3. Bg2 {[%emt 0:00:01]} Bg7 {[%emt 0:00:01]} 4. Nc3 {[%emt 0:00:01]} Nc6 {[%emt 0:00:01]} 5. a3 {[%emt 0:00:01]} a6 {[%emt 0:00:01]} 6. Rb1 {[%emt 0:00:01]} Rb8 {[%emt 0:00:01]} 7. b4 {[%emt 0:00:01]} cxb4 {[%emt 0:00:01]} 8. axb4 {[%emt 0:00:01]} b5 {[%emt 0:00:01]} 9. c5 {[%emt 0:00:01]} a5 {[%emt 0:00:01]} 10. Ba3 {[%emt 0:00:01]} axb4 {[%emt 0:00:01]} 11. Bxb4 {[%emt 0:00:01]} Nxb4 {[%emt 0:00:04]} 12. Rxb4 {[%emt 0:00:01]} d6 {[%emt 0:00:04]} 13. c6 {[%emt 0:00:04]} Bxc3 {[%emt 0:00:01]} 14. dxc3 {[%emt 0:00:01]} Qc7 {[%emt 0:00:04]} 15. Qd4 {[%emt 0:00:04]} Nf6 {[%emt 0:00:04]} 16. Bd5 {[%emt 0:00:04]} Qb6 {[%emt 0:00:05]} 17. e4 {[%emt 0:00:04]} Qxd4 {[%emt 0:00:02]} 18. cxd4 {[%emt 0:00:01]} Nxd5 {[%emt 0:00:01]} 19. exd5 {[%emt 0:00:01]} Ra8 {[%emt 0:00:03]} 20. Rxb5 {[%emt 0:00:01]} Kd8 {[%emt 0:00:02]} 21. f4 {[%emt 0:00:03]} Ra2 {[%emt 0:00:02]} 22. Rb8 {[%emt 0:00:03]} Re8 {[%emt 0:00:02]} 23. h4 {[%emt 0:00:02]} h5 {[%emt 0:00:02]} 24. Rh3 {[%emt 0:00:02]} Ra3 {[%emt 0:00:01]} 25. Kf2 {[%emt 0:00:02]} Kc7 {[%emt 0:00:02]} 26. Rb5 {[%emt 0:00:03]} Ra2+ {[%emt 0:00:01]} 27. Kf3 {[%emt 0:00:01]} Bg4+ {[%emt 0:00:02]} 28. Ke3 {[%emt 0:00:01]} Ra3+ {[%emt 0:00:01]} 29. Kf2 {[%emt 0:00:01]} Bxh3 {[%emt 0:00:00]} 30. Rb7+ {[%emt 0:00:01]} Kc8 {[%emt 0:00:01]} 31. Nxh3 {[%emt 0:00:01]} e6 {[%emt 0:00:01]} 32. Ng5 {[%emt 0:00:01]} Ra2+ {[%emt 0:00:01]} 33. Kf3 {[%emt 0:00:01]} Ra3+ {[%emt 0:00:01]} 34. Kg2 {[%emt 0:00:01]} exd5 {[%emt 0:00:01]} 35. Rxf7 {[%emt 0:00:01]} Re1 {[%emt 0:00:01]} 36. Rh7 {[%emt 0:00:01]} Ra2+ {[%emt 0:00:01]} 37. Kf3 {[%emt 0:00:01]} Rc1 {[%emt 0:00:01]} 38. Rh8+ {[%emt 0:00:00]} Kc7 {[%emt 0:00:01]} 39. Ne6+ {[%emt 0:00:01]} Kxc6 {[%emt 0:00:01]} 40. Rc8+ {[%emt 0:00:01]} Kd7 {[%emt 0:00:01] '} 41. Rxc1 {[%emt 0:00:01] (Lag: Av=0.08s, max=0.9s)} 1-0

[Event "Test Tournament"]
[Site "Emanuel Lasker Arena"]
[Date "2024.04.09"]
[Round "4"]
[White "ArrowPlay"]
[Black "Stratospheric"]
[Result "1-0"]
[WhiteElo "2027"]
[BlackElo "1620"]
[Annotator "RC"]
[PlyCount "25"]
[EventDate "2024.04.09"]
[EventType "swiss (blitz)"]
[TimeControl "60"]

1. d4 {[%emt 0:00:01]} d5 {[%emt 0:00:01]} 2. c4 {[%emt 0:00:01]} dxc4 {[%emt 0:00:01]} 3. Nf3 {[%emt 0:00:01]} Nf6 {[%emt 0:00:01]} 4. e3 {[%emt 0:00:01]} e6 {[%emt 0:00:01]} 5. Bxc4 {[%emt 0:00:01]} c5 {[%emt 0:00:01]} 6. O-O {[%emt 0:00:01]} cxd4 {[%emt 0:00:01]} 7. exd4 {[%emt 0:00:01]} Be7 {[%emt 0:00:01]} 8. Qe2 {[%emt 0:00:01]} O-O {[%emt 0:00:01]} 9. Nc3 {[%emt 0:00:01]} Nbd7 {[%emt 0:00:01]} 10. Bg5 {[%emt 0:00:01]} Nb6 {[%emt 0:00:01]} 11. Bd3 {[%emt 0:00:01]} Nfd5 {[%emt 0:00:01]} 12. Qe4 {[%emt 0:00:02]} Bxg5 {[%emt 0:00:04]} 13. Qxh7# {[%emt 0:00:04] (Lag: Av=0.12s, max=0.8s)} 1-0

[Event "Test Tournament"]
[Site "Emanuel Lasker Arena"]
[Date "2024.04.09"]
[Round "4"]
[White "Local Hero"]
[Black "Jed Bartlet"]
[Result "1-0"]
[WhiteElo "1983"]
[BlackElo "2159"]
[Annotator "RC"]
[PlyCount "79"]
[EventDate "2024.04.09"]
[EventType "swiss (blitz)"]
[TimeControl "60"]

1. e4 {[%emt 0:00:01]} e5 {[%emt 0:00:01]} 2. Nf3 {[%emt 0:00:01]} Nc6 {[%emt 0:00:01]} 3. Bb5 {[%emt 0:00:01]} a6 {[%emt 0:00:01]} 4. Ba4 {[%emt 0:00:01]} Nf6 {[%emt 0:00:01]} 5. O-O {[%emt 0:00:01]} Be7 {[%emt 0:00:01]} 6. Re1 {[%emt 0:00:01]} b5 {[%emt 0:00:01]} 7. Bb3 {[%emt 0:00:01]} d6 {[%emt 0:00:01]} 8. c3 {[%emt 0:00:01]} O-O {[%emt 0:00:01]} 9. h3 {[%emt 0:00:01]} Na5 {[%emt 0:00:01]} 10. Bc2 {[%emt 0:00:01]} c5 {[%emt 0:00:01]} 11. d4 {[%emt 0:00:01]} Qc7 {[%emt 0:00:01]} 12. Nbd2 {[%emt 0:00:01]} cxd4 {[%emt 0:00:01]} 13. cxd4 {[%emt 0:00:01]} Rd8 {[%emt 0:00:01]} 14. d5 {[%emt 0:00:01]} Bd7 {[%emt 0:00:01]} 15. Bd3 {[%emt 0:00:01]} Nb7 {[%emt 0:00:01]} 16. Nb3 {[%emt 0:00:02]} h6 {[%emt 0:00:04]} 17. Nh4 {[%emt 0:00:03]} Nxd5 {[%emt 0:00:02]} 18. exd5 {[%emt 0:00:01]} Bxh4 {[%emt 0:00:01]} 19. Be3 {[%emt 0:00:04]} Na5 {[%emt 0:00:03]} 20. Qh5 {[%emt 0:00:03]} Nxb3 {[%emt 0:00:03]} 21. axb3 {[%emt 0:00:01]} Be7 {[%emt 0:00:03]} 22. Rac1 {[%emt 0:00:03]} Qb7 {[%emt 0:00:03]} 23. b4 {[%emt 0:00:02]} Qxd5 {[%emt 0:00:01]} 24. Red1 {[%emt 0:00:02]} Rdc8 {[%emt 0:00:02]} 25. Bh7+ {[%emt 0:00:01]} Kxh7 {[%emt 0:00:01]} 26. Rxd5 {[%emt 0:00:01]} Rxc1+ {[%emt 0:00:01]} 27. Bxc1 {[%emt 0:00:01]} Rc8 {[%emt 0:00:02]} 28. Be3 {[%emt 0:00:02]} Kg8 {[%emt 0:00:02]} 29. f4 {[%emt 0:00:02]} Rc2 {[%emt 0:00:02]} 30. Rd1 {[%emt 0:00:02]} Be6 {[%emt 0:00:01]} 31. f5 {[%emt 0:00:01]} Bc4 {[%emt 0:00:01]} 32. Qf3 {[%emt 0:00:02]} d5 {[%emt 0:00:01]} 33. Bc5 {[%emt 0:00:01]} e4 {[%emt 0:00:01]} 34. Qg3 {[%emt 0:00:02]} Bg5 {[%emt 0:00:02]} 35. Qb8+ {[%emt 0:00:02]} Kh7 {[%emt 0:00:01]} 36. Qe8 {[%emt 0:00:02]} Bf4 {[%emt 0:00:01]} 37. Qxf7 {[%emt 0:00:01]} e3 {[%emt 0:00:01]} 38. Qg6+ {[%emt 0:00:01]} Kh8 {[%emt 0:00:01]} 39. f6 {[%emt 0:00:01]} Rxb2 {[%emt 0:00:01]} 40. Qxg7# {[%emt 0:00:01] (Lag: Av=0.08s, max=0.9s)} 1-0